bitfinex-derivatives/quotes_BTCF0:USTF0_20250402
["timestamp","ask_amount","ask_price","bid_price","bid_amount"]
[1743574375724,0.61269107,83981.0,83980.0,8e-05]
[1743574376222,0.67779107,83981.0,83980.0,8e-05]
[1743574376414,0.67879107,83981.0,83980.0,8e-05]
[1743574376815,0.67979107,83981.0,83980.0,8e-05]
[1743574379120,0.69173931,83981.0,83980.0,8e-05]
[1743574379811,0.65903931,83981.0,83980.0,8e-05]
[1743574380016,0.65903931,83981.0,83980.0,0.00068]
[1743574380213,0.65903931,83981.0,83980.0,8e-05]
[1743574380417,0.65903931,83981.0,83980.0,0.00076]
[1743574380617,0.65903931,83981.0,83980.0,8e-05]
[1743574389135,0.1190911,83976.0,83975.0,0.0331]
[1743574389427,0.1198111,83976.0,83975.0,0.0331]
[1743574389634,0.25222231,83976.0,83975.0,0.0331]
[1743574390425,0.28612231,83976.0,83975.0,0.06396]
[1743574390829,0.28612231,83976.0,83975.0,0.0632]
[1743574391034,0.28512231,83976.0,83975.0,0.06384]
[1743574391337,0.28612231,83976.0,83975.0,0.0632]
[1743574391533,0.28612231,83976.0,83975.0,0.06388]
[1743574391729,0.28612231,83976.0,83975.0,0.0638]
[1743574392132,0.28612231,83976.0,83975.0,0.0632]
[1743574392327,0.28612231,83976.0,83975.0,0.0638]
[1743574394827,0.42773963,83976.0,83975.0,0.0638]
[1743574395026,0.42773963,83976.0,83975.0,0.0632]
[1743574396025,0.42773963,83976.0,83975.0,0.0638]
[1743574396439,0.42773963,83976.0,83975.0,0.0632]
[1743574396642,0.42773963,83976.0,83975.0,0.06384]
[1743574396838,0.42773963,83976.0,83975.0,0.0632]
[1743574397932,0.42773963,83976.0,83975.0,0.0638]
[1743574398127,0.42773963,83976.0,83975.0,0.0632]
[1743574398341,0.28612231,83976.0,83975.0,0.0632]
[1743574398531,0.64692231,83976.0,83975.0,0.0638]
[1743574398733,0.64692231,83976.0,83975.0,0.0632]
[1743574399331,0.1190925,83975.0,83974.0,0.00047634]
[1743574399538,0.1508125,83975.0,83974.0,0.00047634]
[1743574399738,0.30597493,83975.0,83974.0,0.00047634]
[1743574400539,0.30697493,83975.0,83974.0,0.00047634]
[1743574400940,0.27597493,83975.0,83974.0,0.18207034]
[1743574401244,0.24647493,83975.0,83974.0,0.18207034]
[1743574401540,0.24647493,83975.0,83974.0,0.18267034]
[1743574401738,0.00272,83975.0,83974.0,0.18267034]
[1743574402039,0.17728768,83979.0,83978.0,0.1190883]
[1743574402247,0.17792768,83979.0,83978.0,0.1197283]
[1743574402442,0.17792768,83979.0,83978.0,0.2697283]
[1743574402639,0.00064,83979.0,83978.0,0.8197283]
[1743574402944,0.17728768,83981.0,83980.0,0.1190854]
[1743574403134,0.17728768,83981.0,83980.0,0.1197254]
[1743574403628,0.17728768,83981.0,83980.0,0.4805254]
[1743574404437,0.29637168,83981.0,83980.0,0.4805254]
[1743574404639,0.29701168,83981.0,83980.0,0.4805254]
[1743574405932,0.29701168,83981.0,83980.0,0.00064]
[1743574405933,0.42262047,83981.0,83980.0,0.00064]
[1743574406339,0.42262047,83981.0,83978.0,0.06598]
[1743574406340,0.1190869,83979.0,83978.0,0.06598]
[1743574406544,0.1197269,83979.0,83978.0,0.06658]
[1743574406733,0.25302932,83979.0,83978.0,0.06658]
[1743574407433,0.25302932,83979.0,83978.0,0.06758]
[1743574407638,0.25302932,83979.0,83978.0,0.06958]
[1743574408536,0.25302932,83979.0,83978.0,0.1886683]
[1743574409846,0.25302932,83979.0,83978.0,0.06958]
[1743574410239,0.28352932,83979.0,83978.0,0.06958]
[1743574410449,0.31562932,83979.0,83978.0,0.06958]
[1743574411441,0.31562932,83979.0,83978.0,0.00368]
[1743574411941,0.31562932,83979.0,83978.0,0.003]
[1743574412538,0.67642932,83979.0,83978.0,0.0335]
[1743574413446,0.1190897,83977.0,83974.0,0.00047634]
[1743574413647,0.1190925,83975.0,83974.0,0.00047634]
[1743574413841,0.11969251,83975.0,83974.0,0.00047634]
[1743574414143,0.32149907,83975.0,83974.0,0.00047634]
[1743574414649,0.32149907,83975.0,83974.0,0.00147634]
[1743574416242,0.32249907,83975.0,83974.0,0.00047634]
[1743574416446,0.32349907,83975.0,83974.0,0.00047634]
[1743574417338,0.46511945,83975.0,83974.0,0.00047634]
[1743574418955,0.82591945,83975.0,83974.0,0.00047634]
[1743574421453,0.82591945,83975.0,83970.0,8e-05]
[1743574421454,0.1190982,83971.0,83970.0,8e-05]
[1743574421751,0.1197382,83971.0,83970.0,8e-05]
[1743574421953,0.24477986,83971.0,83970.0,8e-05]
[1743574422453,0.30947986,83971.0,83970.0,8e-05]
[1743574422652,0.31047986,83971.0,83970.0,8e-05]
[1743574423157,0.31147986,83971.0,83970.0,8e-05]
[1743574424455,0.67227986,83971.0,83970.0,8e-05]
[1743574425856,0.119111,83962.0,83958.0,0.00547643]
[1743574426062,0.0595578,83959.0,83946.0,0.0017867]
[1743574426358,0.1191294,83949.0,83948.0,8e-05]
[1743574426554,0.1198494,83949.0,83948.0,0.0321]
[1743574426749,0.27914116,83949.0,83948.0,0.0626]
[1743574426954,0.27914116,83949.0,83948.0,0.1817308]
[1743574427256,0.12931176,83949.0,83948.0,0.0006]
[1743574427461,0.1191365,83944.0,83943.0,0.35671569]
[1743574427757,0.12009651,83944.0,83943.0,0.35743569]
[1743574427952,0.25211323,83944.0,83943.0,0.35735569]
[1743574428361,0.31281323,83944.0,83943.0,0.35735569]
[1743574429253,0.28381323,83944.0,83943.0,0.35735569]
[1743574429453,0.28381323,83944.0,83943.0,0.53749359]
[1743574429653,0.00196001,83944.0,83943.0,0.53749359]
[1743574430055,0.002,83944.0,83943.0,0.2623379]
[1743574430758,0.002,83944.0,83943.0,0.6231379]
[1743574431260,0.1211365,83944.0,83943.0,1.3231379]
[1743574432649,0.002,83944.0,83943.0,1.3231379]
[1743574433455,0.1211365,83944.0,83943.0,1.3231379]
[1743574434547,0.05956,83956.0,83954.0,0.1191223]
[1743574434748,0.1191252,83953.0,83952.0,0.1191238]
[1743574434953,0.1200452,83953.0,83952.0,0.1197238]
[1743574436158,0.00092,83953.0,83952.0,0.1197238]
[1743574436567,0.1200437,83953.0,83952.0,0.1197238]
[1743574438374,0.1200437,83953.0,83952.0,0.1207238]
[1743574438866,0.1200437,83953.0,83952.0,0.1217238]
[1743574439458,0.00092,83953.0,83952.0,0.1217238]
[1743574439660,0.2250251,83960.0,83956.0,0.1191195]
[1743574439957,0.00105862,83957.0,83956.0,0.2012795]
[1743574440854,0.12017672,83957.0,83956.0,0.08216]
[1743574441054,0.15207672,83957.0,83956.0,0.08216]
[1743574441369,0.15207672,83957.0,83956.0,0.0006]
[1743574442273,0.00105862,83957.0,83956.0,0.1197195]
[1743574442770,0.00105862,83957.0,83956.0,0.1207195]
[1743574444461,0.00017861,83957.0,83956.0,0.1207195]
[1743574444666,0.00017861,83957.0,83956.0,0.2022795]
[1743574444870,0.00113862,83957.0,83956.0,0.2022795]
[1743574445866,0.00017861,83957.0,83956.0,0.2022795]
[1743574446861,0.00105862,83957.0,83956.0,0.2353795]
[1743574447057,0.00017861,83957.0,83956.0,0.2353795]
[1743574449068,0.1059104,83965.0,83964.0,0.1191081]
[1743574449266,0.1059104,83965.0,83964.0,0.4805081]
[1743574449267,0.10679041,83965.0,83964.0,0.4805081]
[1743574449667,0.10679041,83965.0,83964.0,1.1805081]
[1743574449866,0.1059104,83969.0,83968.0,0.1191025]
[1743574450173,0.1059104,83969.0,83968.0,0.2012625]
[1743574450469,0.14162038,83973.0,83968.0,0.08216]
[1743574450669,0.14162038,83973.0,83972.0,0.4798968]
[1743574450871,0.14226038,83973.0,83972.0,0.4805368]
[1743574451073,0.00017861,83977.0,83976.0,0.1190911]
[1743574451264,0.11020679,83978.0,83977.0,0.1190897]
[1743574451572,0.11092679,83978.0,83977.0,0.1198097]
[1743574451868,0.11020679,83978.0,83977.0,0.1517097]
[1743574452271,0.064,83993.0,83982.0,0.1190826]
[1743574452470,0.00017861,83986.0,83982.0,0.5622026]
[1743574452977,0.032,83985.0,83982.0,0.5622026]
[1743574453165,0.2134131,83983.0,83982.0,0.5622026]
[1743574453866,0.2134131,83983.0,83982.0,0.5632026]
[1743574454276,0.24803519,83994.0,83982.0,0.70618561]
[1743574454465,0.24803519,83994.0,83993.0,0.479867]
[1743574454466,0.24903519,83994.0,83993.0,0.479867]
[1743574454665,0.0313,83997.0,83996.0,0.1190628]
[1743574454875,0.0004,83999.0,83998.0,0.1190599]
[1743574455073,0.0004,83999.0,83998.0,0.1206999]
[1743574455472,0.0004,83999.0,83998.0,0.1844999]
[1743574455867,0.1186585,83999.0,83998.0,0.8844999]
[1743574456175,0.1785839,84003.0,84002.0,0.1785758]
[1743574456480,0.1785839,84003.0,84002.0,0.1801358]
[1743574456774,0.0004,84015.0,84014.0,0.1190373]
[1743574456963,0.3608,84026.0,84014.0,0.1190373]
[1743574456964,0.3608,84026.0,84015.0,0.1190358]
[1743574457163,0.3608,84026.0,84015.0,0.8205958]
[1743574457474,0.4571782,84016.0,84015.0,0.00156]
[1743574457682,0.1190387,84013.0,84012.0,8e-05]
[1743574457976,0.0595185,84015.0,84004.0,0.17875391]
[1743574457977,0.062,84015.0,84004.0,0.17875391]
[1743574458172,0.47985,84005.0,84004.0,0.12087001]
[1743574458671,0.47985,84005.0,84004.0,0.20235001]
[1743574459172,0.54235,84005.0,84004.0,0.20335001]
[1743574460168,0.54235,84005.0,84004.0,0.20435001]
[1743574460368,0.0625,84005.0,84004.0,0.20435001]
[1743574460775,0.0625,84005.0,84004.0,0.20335001]
[1743574460973,0.0309,84005.0,84004.0,0.20535001]
[1743574461371,0.0309,84005.0,84004.0,0.26815001]
[1743574461571,0.0309,84005.0,84004.0,0.26715001]
[1743574461778,0.0309,84005.0,84004.0,0.26815001]
[1743574462475,0.0328,84010.0,84009.0,0.1190443]
[1743574462776,0.00017861,84021.0,84020.0,0.1190288]
[1743574462975,0.00017861,84021.0,84020.0,0.1205888]
[1743574463672,0.15170591,84021.0,84020.0,0.1205888]
[1743574463979,0.15270591,84021.0,84020.0,0.1205888]
[1743574464977,0.15370591,84021.0,84020.0,0.1205888]
[1743574466774,0.03467861,84021.0,84020.0,0.1205888]
[1743574467477,0.03467861,84021.0,84020.0,0.1512888]
[1743574468471,0.03467861,84021.0,84020.0,0.86301651]
[1743574468666,0.0315,84030.0,84029.0,0.119016]
[1743574468886,0.0595003,84040.0,84033.0,0.1190103]
[1743574469076,0.119008,84035.0,84033.0,0.1205703]
[1743574469378,0.0315,84040.0,84039.0,0.1190018]
[1743574469579,0.0315,84040.0,84039.0,0.1206418]
[1743574469880,0.16315363,84040.0,84039.0,0.8206418]
[1743574470083,0.1505004,84040.0,84039.0,0.8206418]
[1743574470280,0.0315,84040.0,84039.0,0.8206418]
[1743574470484,0.0315,84040.0,84039.0,0.1847418]
[1743574470869,0.0315,84040.0,84039.0,0.1857418]
[1743574471076,0.1505004,84040.0,84039.0,0.1535418]
[1743574471683,0.0315,84040.0,84039.0,0.2350218]
[1743574472286,0.0315,84040.0,84039.0,0.2370218]
[1743574472581,0.0001785,84048.0,84046.0,0.1189919]
[1743574472784,0.0004,84063.0,84049.0,0.1189871]
[1743574472785,0.1189891,84050.0,84049.0,0.1189871]
[1743574472974,0.0594937,84050.0,84046.0,0.3624]
[1743574473280,0.0594937,84050.0,84039.0,0.08648]
[1743574473281,0.1189948,84044.0,84043.0,0.2004755]
[1743574473477,0.1189948,84044.0,84043.0,0.08304]
[1743574473678,0.1189948,84044.0,84043.0,0.00156]
[1743574474186,0.1189948,84044.0,84043.0,0.1205562]
[1743574474395,0.1829948,84044.0,84043.0,0.1205562]
[1743574475989,0.1829948,84044.0,84043.0,0.1215562]
[1743574476180,0.67981763,84044.0,84043.0,0.00456]
[1743574476380,0.1190033,84038.0,84031.0,0.0001785]
[1743574476681,0.1190118,84032.0,84031.0,0.0017385]
[1743574477283,0.25575132,84032.0,84031.0,0.0017385]
[1743574477680,0.19813952,84032.0,84031.0,0.1207517]
[1743574477983,0.16763952,84032.0,84031.0,0.1207517]
[1743574478285,0.31715132,84032.0,84031.0,0.1838517]
[1743574478884,0.31715132,84032.0,84031.0,0.1848517]
[1743574479787,0.31715132,84032.0,84031.0,0.1838517]
[1743574480489,0.31715132,84032.0,84031.0,0.0337385]
[1743574480685,0.31715132,84032.0,84031.0,0.0017385]
[1743574481485,0.31715132,84032.0,84031.0,0.0027385]
[1743574482793,0.31715132,84032.0,84031.0,0.0017385]
[1743574483090,0.31715132,84032.0,84031.0,0.0027385]
[1743574483293,0.31715132,84032.0,84031.0,0.1217517]
[1743574484390,0.31715132,84032.0,84031.0,0.0027385]
[1743574486184,0.119016,84029.0,84028.0,8e-05]
[1743574486479,0.1190245,84023.0,84022.0,0.00047606]
[1743574486697,0.1190245,84023.0,84022.0,0.00203606]
[1743574486989,0.24378287,84023.0,84022.0,0.00047606]
[1743574487189,0.24378287,84023.0,84022.0,0.00203606]
[1743574487385,0.33648287,84023.0,84022.0,0.00203606]
[1743574488092,0.33648287,84023.0,84022.0,0.00047606]
[1743574488391,0.30498287,84023.0,84022.0,0.12110196]
[1743574489193,0.30598287,84023.0,84022.0,0.12110196]
[1743574489395,0.30598287,84023.0,84022.0,0.15340196]
[1743574489697,0.27528287,84023.0,84022.0,0.15340196]
[1743574489989,0.27428287,84023.0,84022.0,0.15340196]
[1743574491787,0.30558287,84023.0,84022.0,0.03437606]
[1743574492592,0.30558287,84023.0,84022.0,0.15340196]
[1743574492797,0.33868287,84023.0,84022.0,0.15340196]
[1743574492997,0.27428287,84023.0,84022.0,0.15340196]
[1743574494394,0.24378287,84023.0,84022.0,0.15340196]
[1743574494594,0.1190245,84023.0,84022.0,0.15340196]
[1743574494789,0.1190245,84023.0,84022.0,0.85340196]
[1743574496990,0.1190245,84023.0,84022.0,0.15340196]
[1743574497385,0.1190245,84023.0,84022.0,0.85340196]
[1743574497591,0.1190245,84023.0,84022.0,0.15340196]
[1743574501400,0.25262018,84023.0,84022.0,0.03437606]
[1743574501606,0.31462018,84023.0,84022.0,0.03437606]
[1743574502096,0.31462018,84023.0,84022.0,0.15340196]
[1743574502300,0.31462018,84023.0,84022.0,0.18570196]
[1743574503000,0.25262018,84023.0,84022.0,0.18570196]
[1743574503203,0.28592018,84023.0,84022.0,0.06667606]
[1743574503596,0.34992018,84023.0,84022.0,0.06667606]
[1743574504494,0.34992018,84023.0,84022.0,0.18570196]
[1743574505794,0.28372018,84023.0,84022.0,0.18570196]
[1743574507191,0.28372018,84023.0,84022.0,0.06667606]
[1743574507806,0.28372018,84023.0,84022.0,0.18570196]
[1743574511311,0.25262018,84023.0,84022.0,0.18570196]
[1743574511506,0.42887315,84023.0,84022.0,0.18570196]
[1743574512009,0.29527747,84023.0,84022.0,0.18570196]
[1743574514916,0.1190245,84023.0,84022.0,0.18570196]
[1743574516714,0.24390484,84023.0,84022.0,0.18570196]
[1743574517011,0.24390484,84023.0,84022.0,0.06667606]
[1743574517309,0.24390484,84023.0,84022.0,0.18570196]
[1743574517514,0.24390484,84023.0,84022.0,0.06667606]
[1743574517811,0.24390484,84023.0,84022.0,0.18570196]
[1743574517812,0.27560484,84023.0,84022.0,0.18570196]
[1743574519603,0.24390484,84023.0,84022.0,0.18570196]
[1743574520510,0.12488034,84023.0,84022.0,0.18570196]
[1743574520710,0.32041831,84025.0,84024.0,0.1190231]
[1743574520900,0.32041831,84025.0,84024.0,0.1205831]
[1743574521407,0.1785341,84025.0,84024.0,0.1205831]
[1743574523120,0.1785341,84025.0,84024.0,0.4813831]
[1743574527117,0.14188524,84028.0,84027.0,0.1190188]
[1743574527418,0.14188524,84028.0,84027.0,0.1205788]
[1743574527611,0.26090264,84028.0,84027.0,0.1205788]
[1743574527816,0.26090264,84028.0,84027.0,0.8205788]
[1743574528217,0.26090264,84028.0,84027.0,0.00156]
[1743574528517,0.39763863,84028.0,84027.0,0.00156]
[1743574528717,0.31705339,84028.0,84027.0,0.00156]
[1743574529311,0.1190203,84026.0,84025.0,0.03218]
[1743574529511,0.1190203,84026.0,84025.0,0.03374]
[1743574529719,0.25377915,84026.0,84025.0,0.03374]
[1743574531013,0.0595159,84018.0,84014.0,0.64449291]
[1743574531318,0.1190472,84007.0,84006.0,0.00055615]
[1743574531524,0.4806472,84007.0,84006.0,0.00123615]
[1743574531820,0.61161488,84007.0,84006.0,0.00123615]
[1743574532027,0.6208276,84007.0,84006.0,0.00123615]
[1743574532322,0.7161276,84007.0,84006.0,0.00123615]
[1743574533320,0.71610992,84007.0,84006.0,0.00123615]
[1743574534324,0.71710992,84007.0,84006.0,0.00123615]
[1743574534524,0.71810992,84007.0,84006.0,0.00123615]
[1743574535620,0.77597757,84007.0,84006.0,0.00123615]
[1743574535821,0.77597757,84007.0,84006.0,0.00047615]
[1743574536327,0.11905,84005.0,84004.0,0.0301]
[1743574536527,0.12884505,84005.0,84004.0,0.0301]
[1743574536731,0.1190514,84004.0,84003.0,8e-05]
[1743574536923,0.19100792,84004.0,84003.0,8e-05]
[1743574537221,0.32344322,84004.0,84003.0,8e-05]
[1743574538032,0.33155565,84004.0,84003.0,8e-05]
[1743574538727,0.32444322,84004.0,84003.0,8e-05]
[1743574539529,0.1190585,83999.0,83998.0,0.0303785]
[1743574539718,0.1190585,83999.0,83998.0,0.0311785]
[1743574539719,0.12899502,83999.0,83998.0,0.0311785]
[1743574539919,0.26672456,83999.0,83998.0,0.0311785]
[1743574540431,0.32722456,83999.0,83998.0,0.0311785]
[1743574541129,0.32822456,83999.0,83998.0,0.0311785]
[1743574541432,0.32922456,83999.0,83998.0,0.0311785]
[1743574542133,0.32922456,83999.0,83998.0,0.0009785]
[1743574542529,0.1190642,83995.0,83994.0,0.0302]
[1743574542723,0.12835312,83995.0,83994.0,0.03084]
[1743574542922,0.26576458,83995.0,83994.0,0.03084]
[1743574543118,0.26576458,83995.0,83994.0,0.0302]
[1743574543324,0.29636458,83995.0,83994.0,0.03084]
[1743574543519,0.29636458,83995.0,83994.0,0.0302]
[1743574543731,0.29736458,83995.0,83994.0,0.0302]
[1743574544031,0.1190699,83991.0,83990.0,0.00047624]
[1743574544330,0.12899882,83991.0,83990.0,0.00047624]
[1743574544532,0.26561773,83991.0,83990.0,0.00047624]
[1743574544919,0.28752881,83991.0,83990.0,0.00107624]
[1743574545118,0.29696613,83991.0,83990.0,0.00047624]
[1743574545323,0.2969791,83991.0,83990.0,0.00047624]
[1743574545632,0.6577791,83991.0,83990.0,0.00047624]
[1743574545930,0.1190713,83990.0,83987.0,0.0321]
[1743574546137,0.1190741,83988.0,83987.0,0.0321]
[1743574546332,0.15281322,83988.0,83987.0,0.0321]
[1743574546524,0.34588887,83988.0,83987.0,0.0321]
[1743574546921,0.22681477,83988.0,83981.0,8e-05]
[1743574547227,0.1190826,83982.0,83981.0,8e-05]
[1743574547427,0.1190911,83976.0,83975.0,0.0318]
[1743574547629,0.14464034,83976.0,83975.0,0.0324]
[1743574547931,0.27308409,83976.0,83975.0,0.1514925]
[1743574548134,0.30348409,83976.0,83975.0,0.1514925]
[1743574548330,0.27861485,83976.0,83975.0,0.1514925]
[1743574548537,0.28812243,83976.0,83975.0,0.1514925]
[1743574549234,0.27861485,83976.0,83975.0,0.1514925]
[1743574549435,0.28827871,83976.0,83975.0,0.1514925]
[1743574550135,0.28927871,83976.0,83975.0,0.1829925]
[1743574550321,0.29027871,83976.0,83975.0,0.1829925]
[1743574550721,0.25987871,83976.0,83975.0,0.1829925]
[1743574553033,0.25987871,83976.0,83975.0,0.0639]
[1743574553436,0.25987871,83976.0,83975.0,0.1829925]
[1743574553735,0.00268,83976.0,83975.0,0.1829925]
[1743574554039,0.3608,83994.0,83988.0,0.1190741]
[1743574554230,0.14177794,83989.0,83988.0,0.2011141]
[1743574554433,0.14177794,83989.0,83988.0,0.2958141]
[1743574554932,0.14177794,83989.0,83988.0,0.30748012]
[1743574555439,0.14113794,83989.0,83988.0,0.30748012]
[1743574556139,1e-08,83989.0,83988.0,0.30848012]
[1743574556342,0.17677726,83997.0,83996.0,0.1190628]
[1743574556541,0.17745726,83997.0,83996.0,0.4805028]
[1743574556734,0.2112366,84005.0,84004.0,0.1190514]
[1743574556936,0.1291297,84005.0,84004.0,0.5620114]
[1743574557330,0.0100797,84005.0,84004.0,0.5620114]
[1743574557542,0.00072,84005.0,84004.0,0.6266114]
[1743574557734,0.14092154,84006.0,84005.0,0.11905]
[1743574558042,0.14160154,84006.0,84005.0,0.11985]
[1743574558234,0.14160154,84006.0,84005.0,0.18165]
[1743574559934,0.00168,84006.0,84005.0,0.18165]
[1743574560134,0.002,84006.0,84005.0,0.18165]
[1743574560639,0.001,84006.0,84005.0,0.18165]
[1743574560837,0.00017862,84013.0,84012.0,0.1190401]
[1743574561031,0.00017862,84013.0,84012.0,0.4805601]
[1743574561235,0.00097862,84013.0,84012.0,0.4805601]
[1743574561439,0.00017862,84013.0,84012.0,0.5128601]
[1743574562040,0.0004,84015.0,84014.0,0.1190373]
[1743574562239,0.0004,84015.0,84014.0,0.1198373]
[1743574562434,0.0004,84015.0,84014.0,0.2012773]
[1743574562833,0.12876542,84015.0,84014.0,0.1198373]
[1743574563037,0.26030984,84015.0,84014.0,0.0008]
[1743574563729,0.14127404,84015.0,84014.0,0.1198373]
[1743574563937,0.14051404,84015.0,84014.0,0.1208373]
[1743574564132,0.14123404,84015.0,84014.0,0.1840373]
[1743574564845,0.14123404,84015.0,84014.0,0.2166373]
[1743574565352,0.26026984,84015.0,84014.0,0.2156373]
[1743574565545,0.1294861,84015.0,84014.0,0.2166373]
[1743574565741,0.00112,84015.0,84014.0,0.2166373]
[1743574565947,0.0004,84015.0,84014.0,0.2166373]
[1743574566239,0.12883042,84015.0,84014.0,0.2156373]
[1743574566440,0.12883042,84015.0,84014.0,0.2176373]
[1743574566441,0.25737216,84015.0,84014.0,0.2176373]
[1743574566835,0.25737216,84015.0,84014.0,0.066]
[1743574567031,0.27297821,84015.0,84014.0,0.0018]
[1743574567237,0.27297821,84015.0,84014.0,0.0038]
[1743574567741,0.27297821,84015.0,84014.0,0.0028]
[1743574567946,0.27297821,84015.0,84014.0,0.0038]
[1743574568130,0.27297821,84015.0,84014.0,0.003]
[1743574568439,0.27297821,84015.0,84014.0,0.002]
[1743574568647,0.2825925,84015.0,84014.0,0.1190373]
[1743574568947,0.2825925,84015.0,84014.0,0.1207573]
[1743574569145,0.3131925,84015.0,84014.0,0.00172]
[1743574569345,0.30457821,84015.0,84014.0,0.0658]
[1743574569647,0.33517821,84015.0,84014.0,0.0658]
[1743574570142,0.33586544,84015.0,84014.0,0.0327]
[1743574570341,0.1190401,84012.0,84011.0,8e-05]
[1743574570642,0.145448,84012.0,84011.0,8e-05]
[1743574570842,0.27259695,84012.0,84011.0,8e-05]
[1743574571037,0.27259695,84012.0,84003.0,0.1190527]
[1743574571038,0.11905,84005.0,84004.0,0.4798507]
[1743574571233,0.00987996,84005.0,84004.0,0.4798507]
[1743574571438,0.1190431,84010.0,84009.0,0.1190415]
[1743574571637,0.1288575,84010.0,84009.0,0.1828415]
[1743574572239,0.1190431,84010.0,84009.0,0.1828415]
[1743574572440,0.19395913,84010.0,84009.0,0.1828415]
[1743574572852,0.19395913,84010.0,84009.0,0.1838415]
[1743574573937,0.32626997,84010.0,84009.0,0.1838415]
[1743574574242,0.32626997,84010.0,84009.0,0.1848415]
[1743574574645,0.32626997,84010.0,84009.0,0.1838415]
[1743574574952,0.32626997,84010.0,84009.0,0.1848415]
[1743574575442,0.32626997,84010.0,84009.0,0.1828415]
[1743574575651,0.32626997,84010.0,84009.0,0.1858415]
[1743574576150,0.32702997,84010.0,84009.0,0.1866015]
[1743574577143,0.32702997,84010.0,84009.0,0.1856015]
[1743574577344,0.32702997,84010.0,84009.0,0.1866015]
[1743574577939,0.32702997,84010.0,84009.0,0.06556]
[1743574578139,0.32702997,84010.0,84009.0,0.00376]
[1743574578340,0.34263032,84010.0,84009.0,0.00376]
[1743574578748,0.32702997,84010.0,84009.0,0.00376]
[1743574579350,0.34263166,84010.0,84009.0,0.00376]
[1743574580036,0.34263166,84010.0,84009.0,0.1228043]
[1743574580847,0.34263166,84010.0,84009.0,0.1218043]
[1743574581148,0.34263166,84010.0,84009.0,0.1228043]
[1743574581449,0.34263166,84010.0,84009.0,0.1218043]
[1743574581654,0.34263166,84010.0,84009.0,0.1228043]
[1743574581853,0.34263166,84010.0,84009.0,0.00376]
[1743574582044,0.1190458,84008.0,84007.0,8e-05]
[1743574582353,0.1190458,84008.0,83999.0,8e-05]
[1743574582354,0.1190514,84004.0,83999.0,8e-05]
[1743574582548,0.1190514,84004.0,83996.0,0.00017862]
[1743574582549,0.1190613,83997.0,83996.0,0.00017862]
[1743574582851,0.14501902,83997.0,83996.0,0.00077862]
[1743574583050,0.28396057,83997.0,83996.0,0.00077862]
[1743574583450,0.34826057,83997.0,83996.0,0.00077862]
[1743574584440,0.36681542,83997.0,83996.0,0.00077862]
[1743574585045,0.34826057,83997.0,83996.0,0.00077862]
[1743574585547,0.34826057,83997.0,83996.0,0.00017862]
[1743574586650,0.34826057,83997.0,83996.0,0.00081862]
[1743574586952,0.34826057,83997.0,83996.0,0.11988142]
[1743574587556,0.1190628,83996.0,83995.0,0.1190633]
[1743574587756,0.14530052,83996.0,83995.0,0.1197433]
[1743574587958,0.3122294,83996.0,83995.0,0.1197433]
[1743574588156,0.352031,83996.0,83995.0,0.1197433]
[1743574588455,0.03463932,83996.0,83995.0,0.1197433]
[1743574588656,0.02531772,83996.0,83995.0,0.1197433]
[1743574588853,0.119056,84001.0,84000.0,0.1190571]
[1743574589172,0.02579715,84001.0,84000.0,0.4798571]
[1743574589352,0.00992198,84001.0,84000.0,0.4798571]
[1743574589755,0.12981768,84001.0,84000.0,0.5440571]
[1743574589954,0.12897768,84001.0,84000.0,0.5434571]
[1743574590344,0.2112366,84009.0,84005.0,0.0595248]
[1743574590550,0.4183,84032.0,84024.0,0.1190231]
[1743574590756,0.24803519,84040.0,84024.0,0.1190231]
[1743574590757,0.4798203,84026.0,84025.0,0.2149217]
[1743574590951,0.4798203,84026.0,84024.0,0.1190231]
[1743574591156,0.1504217,84025.0,84024.0,0.1190231]
[1743574591350,0.15898595,84025.0,84024.0,0.1190231]
[1743574593260,0.16098595,84025.0,84024.0,0.1190231]
[1743574593556,0.16398595,84025.0,84024.0,0.1190231]
[1743574593957,0.1190245,84023.0,84022.0,0.0595123]
[1743574594757,0.12758875,84023.0,84022.0,0.0595123]
[1743574594958,0.12758875,84023.0,84022.0,0.0601123]
[1743574594959,0.12842875,84023.0,84022.0,0.0601123]
[1743574595155,0.00940425,84023.0,84022.0,0.0601123]
[1743574595362,0.01340425,84023.0,84022.0,0.1222123]
[1743574595553,0.13242875,84023.0,84022.0,0.1222123]
[1743574595961,0.1238645,84023.0,84022.0,0.1222123]
[1743574598248,0.00484,84023.0,84022.0,0.1222123]
[1743574598448,0.004,84023.0,84022.0,0.1222123]
[1743574598862,0.00484,84023.0,84022.0,0.1222123]
[1743574599259,0.3608,84052.0,84030.0,0.1190146]
[1743574599472,0.1496925,84046.0,84032.0,0.1190118]
[1743574599665,0.0307,84046.0,84045.0,0.1189933]
[1743574599860,0.1193909,84047.0,84046.0,0.1189919]
[1743574600165,0.11999091,84047.0,84046.0,0.1527919]
[1743574600364,0.11999091,84047.0,84046.0,0.1856919]
[1743574601657,0.12499091,84047.0,84046.0,0.1856919]
[1743574601855,0.12499091,84047.0,84046.0,0.0667]
[1743574602162,0.13351084,84047.0,84046.0,0.0006]
[1743574602369,0.1784955,84044.0,84043.0,0.1189951]
[1743574602661,0.18827535,84044.0,84043.0,0.1195951]
[1743574602960,0.21857535,84044.0,84043.0,0.1195951]
[1743574603263,0.25037535,84044.0,84043.0,0.1195951]
[1743574604262,0.1190004,84040.0,84039.0,0.3608]
[1743574604461,0.12914234,84040.0,84039.0,0.3614]
[1743574604765,0.25532395,84040.0,84039.0,0.3614]
[1743574604967,0.25532395,84040.0,84039.0,0.4257]
[1743574605367,0.24594201,84040.0,84039.0,0.4257]
[1743574605666,0.25494201,84040.0,84039.0,0.4257]
[1743574606268,0.26420658,84040.0,84039.0,0.4257]
[1743574606462,0.25494201,84040.0,84039.0,0.5447018]
[1743574607362,0.25494201,84040.0,84039.0,0.4257]
[1743574607554,0.26415803,84040.0,84039.0,0.3614]
[1743574609053,0.26415803,84040.0,84039.0,0.4262]
[1743574610373,0.26415803,84040.0,84039.0,0.5452018]
[1743574611267,0.25494201,84040.0,84039.0,0.5452018]
[1743574612058,0.26415709,84040.0,84039.0,0.0006]
[1743574612263,0.1190018,84039.0,84038.0,0.00017851]
[1743574612567,0.19145688,84039.0,84038.0,0.00017851]
[1743574612772,0.19145688,84039.0,84038.0,0.00085851]
[1743574612960,0.32309617,84039.0,84038.0,0.00017851]
[1743574613574,0.32809617,84039.0,84038.0,0.00017851]
[1743574613774,0.32809617,84039.0,84038.0,0.00085851]
[1743574614259,0.33209617,84039.0,84038.0,0.00085851]
[1743574614671,0.33209617,84039.0,84038.0,0.00017851]
[1743574614875,0.33209617,84039.0,84038.0,0.15008181]
[1743574615074,0.33209617,84039.0,84038.0,0.18318181]
[1743574615472,0.30059617,84039.0,84038.0,0.18318181]
[1743574615662,0.16895688,84039.0,84038.0,0.54398181]